bitfinex-derivatives/quotes_SOLF0:USTF0_20241224
["timestamp","ask_amount","ask_price","bid_price","bid_amount"]
[1735004604462,9.43156332,188.7,188.62,7.78206332]
[1735004605558,2.6536,188.66,188.63,2.6538]
[1735004608868,2.6536,188.66,188.62,10.43616332]
[1735004611174,2.6538,188.65,188.63,7.78206332]
[1735004620271,7.78206332,188.66,188.59,10.43646332]
[1735004620473,7.78206332,188.64,188.54,16.63335393]
[1735004620679,7.78206332,188.64,188.57,7.78206332]
[1735004621077,2.6544,188.6,188.57,7.78206332]
[1735004622679,7.78206332,188.63,188.54,2.6551]
[1735004622873,7.78206332,188.59,188.48,72.10052636]
[1735004623078,7.78206332,188.59,188.52,7.78206332]
[1735004623279,2.6552,188.55,188.51,7.78206332]
[1735004623581,7.78206332,188.56,188.49,7.78206332]
[1735004624680,7.78206332,188.56,188.46,40.7333922]
[1735004624681,2.6557,188.51,188.47,7.78206332]
[1735004625276,2.6559,188.5,188.45,7.78206332]
[1735004625675,7.78206332,188.52,188.45,7.78206332]
[1735004626078,2.6558,188.5,188.45,7.78206332]
[1735004626278,7.78206332,188.52,188.45,7.78206332]
[1735004626689,2.6558,188.5,188.47,7.78206332]
[1735004626887,9.38946332,188.54,188.47,7.78206332]
[1735004628589,2.6556,188.52,188.47,10.43826332]
[1735004630086,2.6556,188.52,188.49,7.78206332]
[1735004631387,2.6556,188.52,188.47,10.43826332]
[1735004632585,2.6557,188.51,188.47,10.43826332]
[1735004632985,2.6557,188.51,188.47,7.78206332]
[1735004633591,2.6557,188.51,188.45,10.43846332]
[1735004634388,9.38946332,188.54,188.45,7.78206332]
[1735004634585,2.6561,188.48,188.45,7.78206332]
[1735004637088,2.6564,188.46,188.42,7.78206332]
[1735004637994,7.78206332,188.5,188.42,7.78206332]
[1735004638197,2.6565,188.45,188.42,7.78206332]
[1735004639784,3.5,188.53,188.42,7.78206332]
[1735004639989,11.28206332,188.53,188.46,7.78206332]
[1735004640190,7.78206332,188.51,188.46,7.78206332]
[1735004640393,2.6564,188.46,188.44,7.78206332]
[1735004640993,2.6564,188.46,188.42,10.43896332]
[1735004641593,2.6562,188.47,188.43,2.6568]
[1735004641794,11.28206332,188.53,188.46,7.78206332]
[1735004642097,1.6074,188.54,188.48,7.78206332]
[1735004642694,4.2628,188.54,188.49,2.6559]
[1735004642896,1.6074,188.54,188.49,2.6559]
[1735004644398,2.6554,188.53,188.49,2.6559]
[1735004645200,2.6557,188.51,188.46,2.6562]
[1735004645396,7.78206332,188.51,188.44,7.78206332]
[1735004646395,2.6559,188.49,188.45,2.6565]
[1735004647799,1.6074,188.54,188.46,7.78206332]
[1735004647996,1.6074,188.54,188.48,7.78206332]
[1735004648194,7.78206332,188.53,188.46,7.78206332]
[1735004648396,2.6557,188.51,188.46,7.78206332]
[1735004649201,2.6557,188.51,188.47,2.6562]
[1735004649701,7.78206332,188.53,188.46,7.78206332]
[1735004650800,2.6555,188.52,188.48,10.43796332]
[1735004653503,7.78206332,188.53,188.46,7.78206332]
[1735004653803,7.78206332,188.51,188.45,2.6564]
[1735004654302,7.78206332,188.51,188.45,10.43846332]
[1735004654706,2.6558,188.5,188.46,2.6563]
[1735004655004,7.78206332,188.53,188.46,2.6563]
[1735004655404,2.6558,188.51,188.46,2.6563]
[1735004655705,7.78206332,188.53,188.46,2.6563]
[1735004656505,2.6558,188.51,188.46,2.6563]
[1735004658699,2.6558,188.5,188.46,2.6563]
[1735004660302,2.6556,188.52,188.48,2.656]
[1735004663708,7.78206332,188.53,188.47,2.6562]
[1735004664302,7.78206332,188.51,188.43,3.5]
[1735004664507,2.6561,188.48,188.44,2.6566]
[1735004669212,2.6559,188.5,188.45,10.43846332]
[1735004670511,2.6559,188.5,188.45,2.6564]
[1735004671414,7.78206332,188.49,188.43,2.6567]
[1735004672012,2.6564,188.46,188.41,2.6569]
[1735004674422,2.6566,188.44,188.39,6.1372]
[1735004674618,7.78206332,188.43,188.39,6.1372]
[1735004674818,7.78206332,188.43,188.39,2.6572]
[1735004675519,2.6566,188.44,188.39,2.6572]
[1735004677224,2.6566,188.44,188.39,10.43926332]
[1735004677424,2.6566,188.44,188.4,2.6572]
[1735004681222,7.78206332,188.42,188.34,62.59086956]
[1735004681416,7.78206332,188.42,188.34,70.37293288]
[1735004681629,2.6575,188.39,188.34,73.03083288]
[1735004684834,2.6575,188.39,188.34,65.24876956]
[1735004685035,2.6575,188.39,188.34,73.03083288]
[1735004685234,7.78206332,188.4,188.34,11.26206332]
[1735004685432,7.78206332,188.38,188.25,59.04717243]
[1735004685633,7.78206332,188.34,188.27,7.78206332]
[1735004686152,2.6583,188.32,188.27,10.44106332]
[1735004686338,7.78206332,188.34,188.27,7.78206332]
[1735004686834,7.78206332,188.34,188.29,2.6587]
[1735004687330,2.6582,188.33,188.28,2.6589]
[1735004689533,1.5136,188.37,188.29,7.78206332]
[1735004689733,9.29566332,188.37,188.31,7.78206332]
[1735004690337,1.5136,188.37,188.31,7.78206332]
[1735004690736,7.26232402,188.48,188.29,3.48]
[1735004690936,7.26232402,188.48,188.41,7.78206332]
[1735004691134,7.78206332,188.49,188.41,7.78206332]
[1735004691437,7.78206332,188.49,188.43,7.78206332]
[1735004692135,3.1369,188.5,188.4,15.6621253]
[1735004692536,2.6561,188.48,188.43,2.6568]
[1735004695332,2.6562,188.47,188.43,2.6568]
[1735004696041,2.6561,188.48,188.43,2.6568]
[1735004696641,2.6562,188.47,188.43,2.6568]
[1735004702640,3.1369,188.5,188.4,15.6621253]
[1735004702849,12.1821253,188.56,188.43,12.1821253]
[1735004703044,1.5194,188.55,188.46,12.1821253]
[1735004703258,2.6556,188.52,188.48,2.6561]
[1735004707037,1.5194,188.55,188.48,2.6561]
[1735004707241,2.6554,188.53,188.48,2.6561]
[1735004707445,1.5194,188.55,188.47,3.44]
[1735004707646,3.1247,188.59,188.49,12.1821253]
[1735004708244,2.6551,188.55,188.47,3.44]
[1735004708645,12.1821253,188.57,188.47,3.44]
[1735004708847,2.6551,188.55,188.47,3.44]
[1735004709446,2.6554,188.53,188.48,2.6561]
[1735004709751,13.8457253,188.54,188.46,3.44]
[1735004710049,2.6559,188.5,188.46,3.44]
[1735004710453,2.6559,188.5,188.45,6.0965]
[1735004713651,29.04929609,188.65,188.48,7.79515677]
[1735004713954,9.32995677,188.64,188.56,7.79515677]
[1735004714457,2.6543,188.61,188.56,10.45005677]
[1735004715854,9.32995677,188.64,188.56,7.79515677]
[1735004716054,2.6544,188.6,188.56,7.79515677]
[1735004716254,2.6544,188.6,188.55,6.0951]
[1735004716453,1.5348,188.64,188.55,6.0951]
[1735004716454,2.6543,188.61,188.55,6.0951]
[1735004717160,2.6545,188.6,188.55,6.0951]
[1735004718562,2.6545,188.59,188.55,3.44]
[1735004718950,12.16577837,188.63,188.51,3.44]
[1735004719249,12.16577837,188.6,188.46,12.57857837]
[1735004719453,12.16577837,188.6,188.47,3.44]
[1735004719651,2.6553,188.54,188.48,2.656]
[1735004720054,2.6553,188.54,188.47,3.44]
[1735004720463,2.6553,188.54,188.48,3.44]
[1735004721565,12.16577837,188.6,188.49,12.16577837]
[1735004721768,12.16577837,188.63,188.49,12.16577837]
[1735004722067,2.6545,188.59,188.49,12.16577837]
[1735004722569,2.6544,188.6,188.55,2.6549]
[1735004722869,1.5348,188.64,188.54,3.44]
[1735004723262,2.654,188.63,188.58,2.6545]
[1735004723963,2.6541,188.62,188.58,2.6545]
[1735004724166,2.6541,188.62,188.55,12.16577837]
[1735004724366,1.5348,188.64,188.57,2.6548]
[1735004724566,2.6541,188.62,188.57,2.6548]
[1735004725865,2.6541,188.62,188.56,3.44]
[1735004726067,4.1886,188.64,188.56,3.44]
[1735004727470,4.1886,188.64,188.59,2.6545]
[1735004727769,1.5348,188.64,188.59,2.6545]
[1735004727969,32.52929609,188.76,188.61,12.16577837]
[1735004728168,4.6356,188.75,188.62,3.48]
[1735004728369,16.80137837,188.75,188.62,15.64577837]
[1735004728675,16.80137837,188.75,188.64,2.6538]
[1735004729069,16.80137837,188.75,188.62,15.64577837]
[1735004729771,2.6528,188.72,188.62,15.64577837]
[1735004730068,16.80137837,188.75,188.62,15.64577837]
[1735004730271,4.6356,188.75,188.62,15.64577837]
[1735004730473,2.6525,188.74,188.65,12.16577837]
[1735004730869,2.6525,188.74,188.68,2.6532]
[1735004732074,2.6525,188.74,188.69,6.1331]
[1735004733276,2.6525,188.74,188.69,3.48]
[1735004737780,12.16577837,188.79,188.69,3.48]
[1735004737983,2.6522,188.76,188.7,2.6529]
[1735004740886,2.6522,188.76,188.69,3.48]
[1735004741191,2.6522,188.76,188.71,2.6528]
[1735004742184,1.5893,188.81,188.74,12.16577837]
[1735004742385,1.5893,188.81,188.75,3.48]
[1735004743088,1.5893,188.81,188.71,12.16577837]
[1735004743394,1.5893,188.81,188.74,3.48]
[1735004743986,2.6518,188.79,188.74,6.1324]
[1735004744991,2.6521,188.77,188.72,2.6526]
[1735004746589,2.6521,188.76,188.72,2.6526]
[1735004750594,2.6521,188.76,188.71,3.48]
[1735004750789,2.6521,188.76,188.71,6.1328]
[1735004758696,2.6521,188.76,188.71,2.6528]
[1735004758896,2.6521,188.76,188.71,6.1128]
[1735004760200,2.6521,188.76,188.71,13.88579843]
[1735004760497,7.77299843,188.78,188.71,13.88579843]
[1735004760802,7.77299843,188.76,188.68,7.77299843]
[1735004761195,7.77299843,188.76,188.7,7.77299843]
[1735004761591,7.77299843,188.78,188.7,10.42599843]
[1735004761999,7.77299843,188.78,188.7,7.77299843]
[1735004762893,7.77299843,188.76,188.67,3.46]
[1735004763099,7.77299843,188.74,188.67,11.23299843]
[1735004763402,7.77299843,188.74,188.67,7.77299843]
[1735004763601,3.2343,188.73,188.67,7.77299843]
[1735004764102,7.77299843,188.72,188.65,10.42659843]
[1735004764299,2.6528,188.72,188.67,7.77299843]
[1735004764503,3.2343,188.73,188.67,7.77299843]
[1735004765104,2.653,188.71,188.67,10.42639843]
[1735004765603,3.2343,188.73,188.67,10.42639843]
[1735004766501,2.6528,188.71,188.67,7.77299843]
[1735004767304,3.2343,188.73,188.67,7.77299843]
[1735004767508,7.77299843,188.7,188.62,3.46]
[1735004767702,7.77299843,188.68,188.62,7.77299843]
[1735004768002,2.6535,188.67,188.63,2.6539]
[1735004775007,7.77299843,188.68,188.63,2.6539]
[1735004775210,10.42659843,188.66,188.63,2.6539]
[1735004775410,2.6536,188.66,188.63,2.6539]
[1735004777407,2.6533,188.68,188.62,7.77299843]
[1735004777607,7.77299843,188.71,188.66,7.77299843]
[1735004778002,7.77299843,188.71,188.64,7.77299843]
[1735004778414,2.6531,188.7,188.66,2.6535]
[1735004780316,2.6531,188.69,188.66,2.6535]
[1735004782713,7.77299843,188.69,188.61,7.77299843]
[1735004783018,3.2343,188.73,188.63,7.77299843]
[1735004783215,7.77299843,188.71,188.65,7.77299843]
[1735004783415,11.00729843,188.73,188.65,7.77299843]
[1735004784413,2.6531,188.69,188.65,10.42659843]
[1735004785214,11.00729843,188.73,188.65,7.77299843]
[1735004785417,2.653,188.7,188.66,2.6534]
[1735004789226,7.77299843,188.69,188.63,3.44]
[1735004789523,7.77299843,188.69,188.62,11.21299843]
[1735004789729,2.6534,188.67,188.64,7.77299843]
[1735004790215,7.77299843,188.71,188.64,7.77299843]
[1735004790419,2.6533,188.68,188.64,10.42679843]
[1735004791314,2.6534,188.67,188.64,7.77299843]
[1735004793228,2.6536,188.66,188.63,2.6539]
[1735004794926,2.6534,188.67,188.63,2.6539]
[1735004795825,2.6534,188.67,188.62,7.77299843]
[1735004796023,2.6534,188.67,188.64,2.6538]
[1735004797122,2.6533,188.68,188.64,2.6538]
[1735004797732,2.6533,188.68,188.65,2.6536]
[1735004798027,3.2343,188.73,188.65,2.6536]
[1735004798229,7.77299843,188.71,188.65,2.6536]
[1735004798430,7.77299843,188.71,188.66,2.6535]
[1735004798629,2.6528,188.72,188.66,7.77299843]
[1735004798824,3.2343,188.73,188.68,7.77299843]
[1735004799025,1.5647,188.76,188.72,2.6526]
[1735004799221,1.5647,188.76,188.7,7.77299843]
[1735004799421,2.6522,188.76,188.7,7.77299843]
[1735004799836,2.6522,188.76,188.72,2.6527]
[1735004800923,2.6522,188.76,188.71,2.6528]
[1735004802829,2.6519,188.78,188.72,7.77299843]
[1735004803228,10.93209843,188.79,188.72,7.77299843]
[1735004803433,13.58389843,188.79,188.74,2.6524]
[1735004804533,10.93209843,188.79,188.74,2.6524]
[1735004804732,2.6519,188.78,188.72,7.77299843]
[1735004804936,2.6519,188.78,188.73,2.6525]
[1735004805531,10.93209843,188.79,188.72,7.77299843]
[1735004805737,2.6521,188.76,188.72,10.42569843]
[1735004809638,10.93209843,188.79,188.69,2.653]
[1735004809834,2.6523,188.75,188.71,7.77299843]
[1735004811343,2.6525,188.74,188.71,7.77299843]
[1735004811735,2.6525,188.74,188.67,3.44]
[1735004811937,2.6525,188.74,188.71,7.77299843]
[1735004812939,2.6525,188.74,188.67,3.44]
[1735004812940,7.77299843,188.77,188.67,2.6534]
[1735004813137,7.77299843,188.77,188.69,7.77299843]
[1735004813839,3.1591,188.79,188.62,59.43428397]
[1735004813840,7.77299843,188.75,188.62,59.43428397]
[1735004814034,7.77299843,188.73,188.66,7.77299843]
[1735004814438,2.6534,188.67,188.66,7.77299843]
[1735004814634,7.77299843,188.73,188.66,7.77299843]
[1735004815543,1.5678,188.72,188.66,7.77299843]
[1735004816544,2.6533,188.68,188.66,7.77299843]
[1735004817941,2.6531,188.69,188.66,7.77299843]
[1735004820349,1.5678,188.72,188.66,7.77299843]
[1735004821637,2.6534,188.67,188.66,7.77299843]
[1735004821841,1.5678,188.72,188.66,7.77299843]
[1735004822036,1.5678,188.72,188.68,7.77299843]
[1735004822737,2.653,188.7,188.68,7.77299843]
[1735004822935,1.5678,188.72,188.62,59.02638397]
[1735004823135,7.77299843,188.66,188.58,7.77299843]
[1735004823346,7.77299843,188.66,188.56,59.04717243]
[1735004823542,7.77299843,188.66,188.58,7.77299843]
[1735004824445,7.77299843,188.66,188.6,7.77299843]
[1735004825337,7.77299843,188.64,188.49,0.4081]
[1735004825538,1.6453,188.63,188.55,7.77299843]
[1735004825743,7.77299843,188.62,188.55,7.77299843]
[1735004826752,3.1929,188.63,188.55,7.77299843]
[1735004827051,3.1929,188.63,188.59,7.77299843]
[1735004827252,7.77299843,188.66,188.59,7.77299843]
[1735004828449,2.6539,188.64,188.59,10.42749843]
[1735004833656,7.77299843,188.67,188.59,10.42749843]
[1735004833955,2.6541,188.63,188.59,7.77299843]
[1735004834159,7.77299843,188.65,188.57,7.77299843]
[1735004834361,2.6544,188.61,188.57,7.77299843]
[1735004835559,2.6544,188.61,188.57,10.42779843]
[1735004836051,2.6547,188.58,188.54,2.6552]
[1735004836254,7.77299843,188.63,188.54,7.77299843]
[1735004836454,7.77299843,188.63,188.56,7.77299843]
[1735004837259,1.5862,188.64,188.58,7.77299843]
[1735004838255,7.77299843,188.61,188.54,7.77299843]
[1735004838957,2.6545,188.59,188.54,7.77299843]
[1735004839155,7.77299843,188.61,188.54,7.77299843]
[1735004839654,2.6548,188.58,188.54,7.77299843]
[1735004839860,7.77299843,188.61,188.53,7.77299843]
[1735004840359,2.6551,188.56,188.53,7.77299843]
[1735004840771,3.2088,188.63,188.49,3.44]
[1735004840962,10.98179843,188.63,188.55,7.77299843]
[1735004841564,2.6545,188.59,188.55,10.42799843]
[1735004842862,3.2088,188.63,188.55,7.77299843]
[1735004843064,3.2088,188.63,188.57,7.77299843]
[1735004843264,1.5824,188.63,188.57,7.77299843]
[1735004844160,2.6542,188.62,188.58,2.6546]
[1735004845562,1.5824,188.63,188.57,7.77299843]
[1735004846162,1.5893,188.7,188.61,7.77299843]
[1735004846363,7.77299843,188.68,188.61,7.77299843]
[1735004846962,2.6539,188.64,188.61,7.77299843]
[1735004847163,7.77299843,188.68,188.61,7.77299843]
[1735004847859,1.5053,188.69,188.63,7.77299843]
[1735004848266,2.6533,188.68,188.64,2.6537]
[1735004848468,2.6533,188.68,188.56,0.4107]
[1735004848469,1.5053,188.69,188.65,7.77299843]
[1735004848668,7.77299843,188.72,188.65,7.77299843]
[1735004848872,2.6531,188.7,188.65,7.77299843]
[1735004849167,1.6641,188.75,188.69,7.77299843]
[1735004849368,2.6526,188.74,188.71,7.77299843]
[1735004849860,2.6526,188.73,188.71,7.77299843]
[1735004852370,2.6526,188.73,188.69,7.77299843]
[1735004855372,7.77299843,188.73,188.65,2.6537]
[1735004855571,7.77299843,188.73,188.66,7.77299843]
[1735004855770,7.77299843,188.73,188.64,7.77299843]
[1735004857170,2.6535,188.67,188.62,7.77299843]
[1735004861873,2.6537,188.65,188.62,7.77299843]
[1735004863975,2.6538,188.64,188.59,2.6544]
[1735004864179,7.77299843,188.65,188.58,7.77299843]
[1735004865478,2.6543,188.61,188.58,7.77299843]
[1735004865685,9.7898016,188.75,188.6,7.77299843]
[1735004865878,9.7898016,188.75,188.69,7.77299843]
[1735004866080,2.6528,188.72,188.69,7.77299843]
[1735004868175,2.6528,188.72,188.68,2.6532]
[1735004872985,7.0,188.67,188.53,59.04717243]
[1735004873287,12.14874885,188.61,188.53,59.04717243]
[1735004873583,12.14874885,188.59,188.53,59.04717243]
[1735004873784,2.6552,188.54,188.53,59.04717243]
[1735004874577,2.6549,188.57,188.53,3.44]
[1735004874974,12.14874885,188.62,188.53,3.44]
[1735004875179,2.655,188.56,188.53,3.44]
[1735004875687,2.6545,188.6,188.53,3.44]
[1735004875883,12.14874885,188.62,188.53,3.44]
[1735004876787,12.14874885,188.62,188.48,2.6561]
[1735004876988,12.14874885,188.62,188.49,3.46]
[1735004878086,12.14874885,188.62,188.49,6.1159]
[1735004878388,2.6551,188.55,188.49,6.1159]
[1735004878779,12.14874885,188.62,188.5,3.46]
[1735004878979,12.14874885,188.59,188.5,3.46]
[1735004879184,12.14874885,188.59,188.47,2.6561]
[1735004879390,2.6557,188.51,188.45,12.14874885]
[1735004879791,2.6557,188.51,188.46,3.46]
[1735004880189,3.1169,188.55,188.42,12.14874885]
[1735004880387,1.5729,188.54,188.43,6.1167]
[1735004880588,1.5729,188.54,188.44,3.46]
[1735004880893,2.6561,188.48,188.45,3.46]
[1735004881889,2.6559,188.5,188.45,3.46]
[1735004882996,2.6559,188.5,188.45,2.6565]
[1735004883193,1.5729,188.54,188.46,3.46]
[1735004883392,3.1169,188.55,188.46,3.46]
[1735004883594,1.5417,188.55,188.48,12.14874885]
[1735004884293,4.1968,188.55,188.5,2.6558]
[1735004887099,2.6551,188.55,188.5,2.6558]
[1735004888001,12.14874885,188.59,188.48,12.14874885]
[1735004888197,12.14874885,188.59,188.51,2.6556]
[1735004888397,12.14874885,188.59,188.52,3.46]
[1735004888903,12.14874885,188.56,188.5,3.46]
[1735004889097,12.14874885,188.56,188.49,3.46]
[1735004889296,1.6232,188.55,188.49,3.46]
[1735004889494,1.5319,188.61,188.49,3.46]
[1735004889703,12.14874885,188.58,188.49,3.46]
[1735004890302,12.14874885,188.55,188.43,12.14874885]
[1735004890500,12.14874885,188.55,188.39,12.14874885]
[1735004890795,1.5807,188.6,188.39,12.14874885]
[1735004890796,12.14874885,188.52,188.42,2.6569]
[1735004891000,4.6718,188.51,188.43,3.46]
[1735004891203,2.6563,188.47,188.43,3.46]
[1735004893302,4.6718,188.51,188.43,3.46]
[1735004894103,2.656,188.49,188.44,2.6565]
[1735004894503,4.6718,188.51,188.39,12.14874885]
[1735004894699,2.6562,188.47,188.4,3.46]
[1735004894907,4.6718,188.51,188.4,3.46]
[1735004895406,2.6559,188.5,188.45,2.6564]
[1735004895903,12.14874885,188.55,188.46,3.46]
[1735004896105,2.6556,188.52,188.47,2.6562]
[1735004896300,2.6556,188.52,188.39,12.14874885]
[1735004896301,12.14874885,188.51,188.4,3.46]
[1735004896507,13.65824885,188.51,188.4,3.46]
[1735004896703,2.6565,188.45,188.41,2.6569]
[1735004896897,2.6565,188.45,188.4,3.46]
[1735004898509,2.6565,188.45,188.41,2.657]
[1735004899102,2.6567,188.44,188.4,3.46]
[1735004899304,3.2137,188.5,188.41,3.46]
[1735004899909,3.2137,188.5,188.39,2.6572]
[1735004900108,3.2137,188.5,188.4,3.46]
[1735004901404,2.6567,188.44,188.4,3.46]
[1735004906011,3.2137,188.5,188.4,3.46]
[1735004906310,3.2137,188.5,188.36,12.14874885]
[1735004906311,12.14874885,188.48,188.36,12.14874885]
[1735004906612,12.14874885,188.45,188.33,3.5]
[1735004906810,3.5,188.44,188.32,3.5]
[1735004907003,12.14874885,188.42,188.31,12.14874885]
[1735004907206,3.1409,188.41,188.3,3.5]
[1735004907411,12.14874885,188.39,188.3,3.5]
[1735004909511,2.658,188.35,188.3,6.1585]
[1735004909711,2.658,188.35,188.3,3.5]
[1735004909912,2.658,188.35,188.3,15.64874885]
[1735004910805,2.658,188.35,188.3,18.30734885]
[1735004912916,2.658,188.35,188.3,15.64874885]
[1735004913117,2.658,188.35,188.31,2.6585]
[1735004915818,2.6577,188.37,188.32,2.6583]
[1735004916912,2.6577,188.37,188.33,2.6582]
[1735004920510,2.6575,188.38,188.33,2.6582]
[1735004920912,3.1409,188.41,188.31,12.14874885]
[1735004921221,2.6573,188.4,188.31,12.14874885]
[1735004921515,1.5404,188.43,188.37,12.14874885]
[1735004921722,2.6569,188.42,188.37,12.14874885]
[1735004922018,1.5404,188.43,188.37,14.80634885]
[1735004923216,2.6571,188.41,188.37,14.80634885]
[1735004923612,1.5404,188.43,188.38,2.6574]
[1735004923817,4.1973,188.43,188.38,2.6574]
[1735004924922,4.1973,188.43,188.39,2.6573]
[1735004926121,1.5404,188.43,188.39,2.6573]
[1735004926523,1.5073,188.48,188.41,2.657]
[1735004926822,3.083,188.48,188.41,2.657]
[1735004927022,2.6564,188.46,188.41,2.657]
[1735004928621,2.6562,188.47,188.37,12.14874885]
[1735004929218,2.6558,188.5,188.43,12.14874885]
[1735004929425,1.5033,188.53,188.44,3.5]
[1735004929619,1.5033,188.53,188.46,2.6563]
[1735004929822,2.6556,188.52,188.44,3.5]
[1735004930520,1.5033,188.53,188.46,12.14874885]
[1735004930916,1.5889,188.54,188.46,12.14874885]
[1735004931222,1.6002,188.58,188.46,12.14874885]
[1735004931415,1.6002,188.58,188.44,3.5]
[1735004931416,1.6002,188.58,188.49,12.14874885]
[1735004931614,4.2549,188.58,188.5,3.5]
[1735004932221,1.6002,188.58,188.5,3.5]
[1735004932424,2.6545,188.6,188.5,3.5]
[1735004932725,2.6545,188.6,188.52,12.14874885]
[1735004932920,2.6546,188.59,188.54,2.6551]
[1735004933825,2.6547,188.58,188.53,2.6553]
[1735004934422,12.14874885,188.58,188.48,3.5]
[1735004934824,2.6554,188.53,188.48,6.1561]
[1735004935926,2.6552,188.54,188.49,2.6559]
[1735004938925,4.8281,188.63,188.51,12.14874885]
[1735004940230,2.6546,188.59,188.55,2.6551]
[1735004940524,4.8281,188.63,188.46,12.14874885]
[1735004940525,12.14874885,188.57,188.46,3.5]
[1735004941530,12.14874885,188.57,188.41,0.41]
[1735004941830,12.14874885,188.54,188.43,3.5]
[1735004942130,3.0809,188.53,188.43,3.5]
[1735004942624,2.656,188.49,188.43,2.6567]
[1735004942824,12.14874885,188.51,188.39,12.14874885]
[1735004944524,2.6565,188.45,188.4,2.6572]
[1735004950236,12.14874885,188.48,188.23,59.04717243]
[1735004950440,1.651,188.44,188.33,12.14874885]
[1735004950633,1.6106,188.43,188.34,3.5]
[1735004951331,1.6106,188.43,188.3,12.14874885]
[1735004951635,1.6106,188.43,188.32,3.5]
[1735004952226,1.6106,188.43,188.3,12.14874885]
[1735004952432,2.6576,188.37,188.33,2.6581]
[1735004952634,12.14874885,188.42,188.31,3.5]
[1735004953035,12.14874885,188.42,188.3,15.64874885]
[1735004953433,2.6578,188.36,188.32,2.6583]
[1735004954639,5.1106,188.43,188.33,12.14874885]
[1735004954640,1.6106,188.43,188.33,12.14874885]
[1735004956443,2.6572,188.4,188.36,2.6577]
[1735004956640,2.6572,188.4,188.33,12.14874885]
[1735004958450,2.6572,188.4,188.35,2.6578]
[1735004960147,1.6106,188.43,188.35,2.6578]
[1735004960447,2.6574,188.39,188.35,2.6578]
[1735004961250,2.6574,188.39,188.36,3.5]
[1735004961452,21.87973777,188.54,188.43,2.6568]
[1735004961657,4.8972,188.53,188.43,6.1568]
[1735004961852,2.656,188.49,188.44,2.6566]
[1735004963159,4.8972,188.53,188.43,3.5]
[1735004963351,43.80124376,188.59,188.45,12.14874885]
[1735004963552,0.77511257,188.58,188.48,12.14874885]
[1735004963753,12.14874885,188.62,188.49,3.5]
[1735004963951,2.6553,188.54,188.5,2.6558]
[1735004964257,2.6553,188.54,188.49,3.5]
[1735004964753,2.6546,188.59,188.49,3.5]
[1735004964957,12.14874885,188.62,188.49,3.5]
[1735004965159,12.14874885,188.62,188.49,6.1558]
[1735004965352,2.6549,188.57,188.49,3.5]
[1735004965548,2.6549,188.57,188.51,12.14874885]
[1735004965854,4.7783,188.63,188.54,2.6552]
[1735004966051,4.7783,188.63,188.52,1.06089539]
[1735004966250,340.74364965,188.77,188.52,1.06089539]
[1735004966251,11.9959613,188.71,188.56,2.6549]
[1735004966458,3.1844,188.65,188.56,6.1549]
[1735004966654,2.6542,188.61,188.56,3.5]
[1735004969953,3.1844,188.65,188.54,12.14874885]
[1735004970150,2.6547,188.58,188.54,15.62874885]
[1735004973367,3.1844,188.65,188.54,15.62874885]
[1735004973664,2.6545,188.6,188.54,15.62874885]
[1735004973963,3.1844,188.65,188.54,15.62874885]
[1735004974557,2.6546,188.59,188.54,15.62874885]
[1735004974759,12.14874885,188.64,188.54,3.48]
[1735004975060,12.14874885,188.64,188.55,1.06072659]
[1735004976466,2.6546,188.59,188.55,1.06072659]
[1735004983269,12.14874885,188.64,188.55,1.06072659]
[1735004983468,12.14874885,188.61,188.5,3.48]
[1735004983766,1.6039,188.6,188.51,1.06095167]
[1735004985068,2.6552,188.55,188.51,1.06095167]
[1735004986471,2.6552,188.55,188.51,3.71655167]
[1735004988473,2.6552,188.55,188.51,1.06095167]
[1735004991069,2.6553,188.54,188.51,1.06095167]
[1735004991269,12.14874885,188.58,188.51,1.06095167]
[1735004991472,3.126,188.57,188.51,1.06095167]
[1735004992674,2.6555,188.52,188.51,1.06095167]
[1735004993576,2.6564,188.46,188.39,3.48]
[1735004993874,2.6564,188.46,188.4,1.06157112]
[1735004994468,2.6564,188.46,188.42,2.6568]